bitfinex/quotes_BTCUSD_20250718
["timestamp","ask_amount","ask_price","bid_price","bid_amount"]
[1752807039370,0.19958286,120250.0,120240.0,0.16638396]
[1752807039608,0.35728189,120250.0,120240.0,0.16638396]
[1752807041260,0.35728189,120250.0,120240.0,0.16738396]
[1752807041702,0.35728189,120250.0,120240.0,0.16838396]
[1752807042151,0.34896609,120250.0,120240.0,0.16838396]
[1752807043574,0.34896609,120250.0,120240.0,0.00204997]
[1752807043779,0.34896609,120250.0,120240.0,0.16838396]
[1752807045455,0.34065016,120250.0,120240.0,0.16838396]
[1752807045914,0.34896603,120250.0,120240.0,0.16838396]
[1752807049012,0.22937164,120250.0,120240.0,0.00204997]
[1752807049233,0.34049016,120250.0,120240.0,0.16838396]
[1752807051257,0.34049016,120250.0,120240.0,0.00204997]
[1752807052242,0.34049016,120250.0,120240.0,0.16838396]
[1752807053240,0.34049016,120250.0,120240.0,0.00204997]
[1752807053675,0.34049016,120250.0,120240.0,0.16838396]
[1752807054384,0.28844044,120250.0,120240.0,0.00204997]
[1752807054555,0.42592044,120250.0,120240.0,0.00204997]
[1752807056057,0.42592044,120250.0,120240.0,0.00104997]
[1752807056663,0.42592044,120250.0,120240.0,4.997e-05]
[1752807056870,0.42592044,120250.0,120240.0,0.16638396]
[1752807059560,0.42592044,120250.0,120240.0,4.997e-05]
[1752807059778,0.42592044,120250.0,120240.0,0.16638396]
[1752807060736,0.28844044,120250.0,120240.0,0.16638396]
[1752807060967,0.24471153,120250.0,120240.0,0.590587]
[1752807061187,0.2530274,120250.0,120240.0,0.57518707]
[1752807061385,0.2530274,120250.0,120240.0,0.5835037]
[1752807061581,0.2613434,120250.0,120240.0,0.57518714]
[1752807061781,0.26134333,120250.0,120240.0,0.57518714]
[1752807061985,0.24471153,120250.0,120240.0,0.59182019]
[1752807062206,0.00521,120250.0,120240.0,0.61754627]
[1752807062513,0.00202,120250.0,120240.0,0.63354585]
[1752807062749,0.14765545,120250.0,120240.0,0.63354585]
[1752807062958,0.13934,120250.0,120240.0,0.63354585]
[1752807063167,0.14765538,120250.0,120240.0,0.63354585]
[1752807063624,0.1559709,120250.0,120240.0,0.23305978]
[1752807063840,0.1559709,120250.0,120240.0,0.63354585]
[1752807064052,0.1559709,120250.0,120240.0,0.63664585]
[1752807064277,0.1559709,120250.0,120240.0,0.24447606]
[1752807064460,0.1559709,120250.0,120240.0,0.63664557]
[1752807064682,0.1559709,120250.0,120240.0,0.62832936]
[1752807064907,0.17260243,120250.0,120240.0,0.63664557]
[1752807065129,0.17260243,120250.0,120240.0,0.62832936]
[1752807065347,0.18091836,120250.0,120240.0,0.2361595]
[1752807065581,0.33892314,120250.0,120240.0,0.61169673]
[1752807066012,0.16428705,120250.0,120240.0,0.62832922]
[1752807066235,0.33892314,120250.0,120240.0,0.61169673]
[1752807066591,0.17260298,120250.0,120240.0,0.22784322]
[1752807066780,0.17260298,120250.0,120240.0,0.62832936]
[1752807067455,0.33060762,120250.0,120240.0,0.59196382]
[1752807067672,0.33060762,120250.0,120240.0,0.60859714]
[1752807068397,0.32229196,120250.0,120240.0,0.21642728]
[1752807068616,0.32229196,120250.0,120240.0,0.60859714]
[1752807068923,0.32229196,120250.0,120240.0,0.6169137]
[1752807069345,0.18497196,120250.0,120240.0,0.6169137]
[1752807069557,0.1641678,120250.0,120240.0,0.62523005]
[1752807069973,0.33048796,120250.0,120240.0,0.63354633]
[1752807070185,0.33048796,120250.0,120240.0,0.62523005]
[1752807070397,0.18497209,120250.0,120240.0,0.03345997]
[1752807070614,0.32217209,120250.0,120240.0,4.997e-05]
[1752807071048,0.18295209,120250.0,120240.0,4.997e-05]
[1752807071271,0.32011209,120250.0,120240.0,4.997e-05]
[1752807072091,0.40562237,120250.0,120240.0,4.997e-05]
[1752807072316,0.30126237,120250.0,120240.0,4.997e-05]
[1752807072532,0.83059223,120250.0,120240.0,4.997e-05]
[1752807073157,0.43842237,120250.0,120240.0,4.997e-05]
[1752807075108,0.43838237,120250.0,120240.0,4.997e-05]
[1752807075506,1.18509308,120250.0,120240.0,4.997e-05]
[1752807075716,1.04797308,120250.0,120240.0,4.997e-05]
[1752807075923,1.21002608,120250.0,120240.0,4.997e-05]
[1752807076136,1.21002608,120250.0,120240.0,1e-08]
[1752807076137,1.30517311,120250.0,120240.0,1e-08]
[1752807077131,1.32074369,120250.0,120240.0,1e-08]
[1752807077339,1.30517311,120250.0,120240.0,1e-08]
[1752807077751,1.31517311,120250.0,120240.0,0.00100001]
[1752807077969,1.17809311,120250.0,120240.0,0.00100001]
[1752807078183,1.32917311,120250.0,120240.0,0.00200001]
[1752807079151,1.32913311,120250.0,120240.0,0.00200001]
[1752807080239,1.26274582,120250.0,120240.0,0.00200001]
[1752807082004,1.12570582,120250.0,120240.0,0.00200001]
[1752807082208,1.26270582,120250.0,120240.0,0.00200001]
[1752807082419,1.12570582,120250.0,120240.0,0.00200001]
[1752807082632,1.26270582,120250.0,120240.0,0.00200001]
[1752807084944,1.26266582,120250.0,120240.0,0.00200001]
[1752807088264,1.27817887,120250.0,120240.0,0.00200001]
[1752807089614,1.30313606,120250.0,120240.0,0.00200001]
[1752807091208,1.28762301,120250.0,120240.0,0.00200001]
[1752807091410,1.30313315,120250.0,120240.0,0.00200001]
[1752807091733,0.91096329,120250.0,120240.0,0.00200001]
[1752807091945,1.30313315,120250.0,120240.0,0.00200001]
[1752807093128,0.35693341,120250.0,120240.0,0.00200001]
[1752807093341,0.88590327,120250.0,120240.0,0.00200001]
[1752807093548,1.22590327,120250.0,120240.0,0.00200001]
[1752807093758,1.24240327,120250.0,120240.0,0.00200001]
[1752807093962,1.12140327,120250.0,120240.0,0.00200001]
[1752807094441,1.28696301,120250.0,120240.0,0.00200001]
[1752807095284,1.3024806,120250.0,120240.0,0.00200001]
[1752807095492,1.1656806,120250.0,120240.0,0.00200001]
[1752807095716,1.3024806,120250.0,120240.0,0.00200001]
[1752807096180,0.89479315,120250.0,120240.0,0.00200001]
[1752807096434,1.28696301,120250.0,120240.0,0.00200001]
[1752807097764,1.10560327,120250.0,120240.0,0.00200001]
[1752807097991,1.22582327,120250.0,120240.0,0.00200001]
[1752807099063,1.08910327,120250.0,120240.0,0.00200001]
[1752807099357,1.22578327,120250.0,120240.0,0.00200001]
[1752807099813,0.31743537,120250.0,120240.0,0.03400001]
[1752807100039,0.29246237,120250.0,120240.0,0.60895771]
[1752807100268,0.20695209,120250.0,120240.0,0.42616987]
[1752807100500,0.34363209,120250.0,120240.0,0.60082055]
[1752807100729,0.20695209,120250.0,120240.0,0.60913711]
[1752807100956,0.20695209,120250.0,120240.0,0.60913718]
[1752807101186,0.33363209,120250.0,120240.0,0.59982055]
[1752807101417,0.33963209,120250.0,120240.0,0.60913718]
[1752807101645,0.33963209,120250.0,120240.0,0.60082055]
[1752807102132,0.33963209,120250.0,120240.0,0.60913718]
[1752807102362,0.33963209,120250.0,120240.0,0.61745367]
[1752807102853,0.17331166,120250.0,120240.0,0.62577009]
[1752807103092,0.17331166,120250.0,120240.0,0.62577002]
[1752807103332,0.33963182,120250.0,120240.0,0.21696732]
[1752807103548,0.32563182,120250.0,120240.0,0.62477023]
[1752807104007,0.33363182,120250.0,120240.0,0.62477023]
[1752807104234,0.15899552,120250.0,120240.0,0.63308665]
[1752807104500,0.014,120250.0,120240.0,1.02525603]
[1752807104715,0.15064,120250.0,120240.0,0.63308617]
[1752807104937,0.014,120250.0,120240.0,1.10602378]
[1752807105177,0.014,120250.0,120240.0,1.19153406]
[1752807105410,0.006,120250.0,120240.0,1.11076631]
[1752807105658,0.14264,120250.0,120240.0,1.11076631]
[1752807105881,0.1426,120250.0,120240.0,1.11076631]
[1752807106752,0.1366,120250.0,120240.0,1.10976631]
[1752807107234,0.1376,120250.0,120240.0,1.11076631]
[1752807107692,0.1366,120250.0,120240.0,0.71859645]
[1752807107927,0.07470198,120260.0,120250.0,0.22316748]
[1752807108138,0.20298729,120260.0,120250.0,0.62365293]
[1752807109581,0.08301411,120280.0,120270.0,0.20650698]
[1752807109803,0.40248037,120280.0,120270.0,0.20650712]
[1752807110018,0.39416706,120280.0,120270.0,0.1981925]
[1752807110897,0.40716706,120280.0,120270.0,0.20750712]
[1752807111100,0.40716706,120280.0,120270.0,0.1991925]
[1752807111312,0.40716706,120280.0,120270.0,0.21582153]
[1752807111525,0.40716706,120280.0,120270.0,0.1991925]
[1752807111956,0.24088838,120280.0,120270.0,0.21582139]
[1752807112382,0.013,120280.0,120270.0,0.69622838]
[1752807112804,0.14956,120280.0,120270.0,0.69622838]
[1752807113283,0.013,120280.0,120270.0,0.69622838]
[1752807114229,0.006,120280.0,120270.0,0.69622838]
[1752807114694,0.16977507,120290.0,120280.0,0.22281964]
[1752807114924,0.15314922,120290.0,120280.0,0.6149895]
[1752807115141,0.16146204,120290.0,120280.0,0.6149895]
[1752807115366,0.16146204,120290.0,120280.0,0.64167479]
[1752807115820,0.169775,120290.0,120280.0,0.64167479]
[1752807116048,0.16982488,120290.0,120280.0,0.64167479]
[1752807116268,0.17813791,120290.0,120280.0,0.64167479]
[1752807116483,0.16982488,120290.0,120280.0,0.6149895]
[1752807116690,0.03430488,120290.0,120280.0,0.6149895]
[1752807116865,0.15415923,120290.0,120280.0,0.6149895]
[1752807117092,0.00104995,120290.0,120280.0,0.6149895]
[1752807117328,0.13752995,120290.0,120280.0,0.6149895]
[1752807117549,0.00104995,120290.0,120280.0,1.09291898]
[1752807118227,0.00104995,120290.0,120280.0,1.17842926]
[1752807118450,0.00104995,120290.0,120280.0,1.31490926]
[1752807119128,0.00104995,120290.0,120280.0,0.67555882]
[1752807119129,0.17562755,120290.0,120280.0,0.67555882]
[1752807119348,0.01767566,120290.0,120280.0,0.69218619]
[1752807119568,0.02598876,120290.0,120280.0,0.7004997]
[1752807119838,0.02598876,120290.0,120280.0,0.69218619]
[1752807120057,0.20056685,120290.0,120280.0,0.69218619]
[1752807120292,0.17562804,120290.0,120280.0,0.0326]
[1752807120530,0.17459247,120280.0,120270.0,0.0165]
[1752807121006,0.17460698,120270.0,120260.0,0.0164]
[1752807121284,0.17460698,120270.0,120250.0,0.41765467]
[1752807121285,0.17462164,120260.0,120250.0,0.05698481]
[1752807121518,0.31106164,120260.0,120250.0,0.59830602]
[1752807121750,0.31106164,120260.0,120250.0,0.60662195]
[1752807121995,0.31106164,120260.0,120250.0,0.42366986]
[1752807122436,0.31106164,120260.0,120250.0,0.59830595]
[1752807122659,0.31937674,120260.0,120250.0,0.61493734]
[1752807123289,0.32137674,120260.0,120250.0,0.23108307]
[1752807123500,0.32137674,120260.0,120250.0,0.62325293]
[1752807123711,0.32237674,120260.0,120250.0,0.62325293]
[1752807123912,0.32137674,120260.0,120250.0,0.62325293]
[1752807124117,0.32137674,120260.0,120250.0,0.60662195]
[1752807124350,0.32337674,120260.0,120250.0,0.60662195]
[1752807124560,0.32337674,120260.0,120250.0,0.42366986]
[1752807126102,0.32337674,120260.0,120250.0,0.59830589]
[1752807126313,0.33169164,120260.0,120250.0,0.61374328]
[1752807126519,0.32337674,120260.0,120250.0,0.61374328]
[1752807126941,0.31933674,120260.0,120250.0,0.61374328]
[1752807127160,0.31933674,120260.0,120250.0,0.64966476]
[1752807127400,0.32033674,120260.0,120250.0,0.64966476]
[1752807127716,0.32033674,120260.0,120250.0,0.64134889]
[1752807127937,0.31202164,120260.0,120250.0,0.64966489]
[1752807128164,0.30470633,120260.0,120250.0,0.43910725]
[1752807128800,0.30470633,120260.0,120250.0,0.60542741]
[1752807129008,0.31302164,120260.0,120250.0,0.61374334]
[1752807129213,0.32133674,120260.0,120250.0,0.62205907]
[1752807129423,0.32961609,120260.0,120250.0,0.60662168]
[1752807129636,0.32961609,120260.0,120250.0,0.60662175]
[1752807129819,0.32961609,120260.0,120250.0,0.61493748]
[1752807130237,0.02690935,120260.0,120250.0,0.70304337]
[1752807130435,0.17158452,120260.0,120250.0,0.70304337]
[1752807130665,0.17989976,120260.0,120250.0,0.70304337]
[1752807130880,0.34620609,120260.0,120250.0,0.70304337]
[1752807131298,0.34620609,120260.0,120250.0,0.70304351]
[1752807131506,0.17989976,120260.0,120250.0,0.71135903]
[1752807131907,0.3545214,120260.0,120250.0,0.71135903]
[1752807132328,0.3462065,120260.0,120250.0,0.70304351]
[1752807132748,0.3462065,120260.0,120250.0,0.62325314]
[1752807132902,0.32957623,120260.0,120250.0,0.60662175]
[1752807133280,0.32126099,120260.0,120250.0,0.59830595]
[1752807133486,0.32126099,120260.0,120250.0,0.60662182]
[1752807134379,0.17658568,120260.0,120250.0,0.39216986]
[1752807134590,0.31290568,120260.0,120240.0,0.22228311]
[1752807134796,0.31290568,120260.0,120250.0,0.39216986]
[1752807135218,0.31290568,120260.0,120250.0,0.55849002]
[1752807135426,0.31190568,120260.0,120250.0,0.55849002]
[1752807135882,0.31090568,120260.0,120250.0,0.57429002]
[1752807136301,0.31090568,120260.0,120250.0,0.58929002]
[1752807137361,0.31090568,120260.0,120250.0,0.0308]
[1752807137576,0.31290568,120260.0,120250.0,0.21375209]
[1752807137787,0.31290568,120260.0,120250.0,0.60592195]
[1752807140076,0.31290568,120260.0,120250.0,0.61423782]
[1752807142584,0.31290568,120260.0,120250.0,0.60592195]
[1752807142767,0.31290568,120260.0,120250.0,0.59760602]
[1752807143428,0.31290568,120260.0,120250.0,0.60592189]
[1752807143937,0.31290568,120260.0,120250.0,0.59760602]
[1752807144150,0.31290568,120260.0,120250.0,0.60592195]
[1752807144581,0.16632016,120250.0,120240.0,0.60623676]
[1752807145248,0.0249474,120250.0,120240.0,0.62286925]
[1752807145450,0.0332634,120250.0,120240.0,0.62286925]
[1752807145664,0.19958356,120250.0,120240.0,0.61455304]
[1752807145868,0.19963348,120250.0,120240.0,0.60623676]
[1752807146071,0.18300195,120250.0,120240.0,0.19145068]
[1752807146289,0.17468608,120250.0,120240.0,0.001]
[1752807146518,0.19048608,120250.0,120240.0,0.001]
[1752807146737,0.20608608,120250.0,120240.0,0.001]
[1752807146960,0.42779636,120250.0,120240.0,0.001]
[1752807148409,0.17465062,120240.0,120230.0,0.18298208]
[1752807148953,0.17465062,120240.0,120230.0,0.17466476]
[1752807149745,0.17465062,120240.0,120230.0,0.17566476]
[1752807149931,0.17465062,120240.0,120230.0,0.18398208]
[1752807150508,0.17465062,120240.0,120230.0,0.16734737]
[1752807151364,0.17465062,120240.0,120230.0,0.39316986]
[1752807151845,0.17465062,120240.0,120230.0,0.56783501]
[1752807152058,0.17465062,120240.0,120230.0,0.55951769]
[1752807152498,0.17465062,120240.0,120230.0,0.001]
[1752807153154,0.17775062,120240.0,120230.0,0.16734783]
[1752807153366,0.17775062,120240.0,120230.0,0.17566515]
[1752807153789,0.17775062,120240.0,120230.0,0.16734783]
[1752807154017,0.17775062,120240.0,120230.0,0.17566522]
[1752807154438,0.17775062,120240.0,120230.0,0.56783508]
[1752807154894,0.17775062,120240.0,120230.0,0.39316986]
[1752807155630,0.17775062,120240.0,120230.0,0.001]
[1752807157176,0.31383062,120240.0,120230.0,0.001]
[1752807160919,0.33033062,120240.0,120230.0,0.001]
[1752807162445,0.31383062,120240.0,120230.0,0.001]
[1752807163139,0.34545062,120240.0,120230.0,0.001]
[1752807164889,0.34645062,120240.0,120230.0,0.001]
[1752807165803,0.4319609,120240.0,120230.0,0.001]
[1752807166407,0.02495299,120220.0,120210.0,0.61553364]
[1752807166792,0.16091299,120220.0,120210.0,0.61553364]
[1752807167010,0.16923093,120220.0,120210.0,0.61877364]
[1752807167220,0.16923093,120220.0,120210.0,0.61553364]
[1752807167391,0.33856322,120220.0,120210.0,0.20672707]
[1752807167588,0.33856322,120220.0,120210.0,0.60821542]
[1752807167993,0.33024556,120220.0,120210.0,0.60189693]
[1752807168188,0.32192769,120220.0,120210.0,0.59441563]
[1752807168453,0.32192769,120220.0,120210.0,0.61105261]
[1752807168610,0.32192769,120220.0,120210.0,0.61903419]
[1752807168810,0.32192769,120220.0,120210.0,0.6356711]
[1752807169453,0.31895769,120220.0,120210.0,0.6356711]
[1752807169659,0.31895769,120220.0,120210.0,0.23518282]
[1752807169863,0.31895769,120220.0,120210.0,0.62735268]
[1752807170060,0.31895769,120220.0,120210.0,0.6356711]
[1752807170295,0.15259567,120220.0,120210.0,0.29306426]
[1752807170498,0.16091368,120220.0,120210.0,0.68523412]
[1752807170721,0.32727535,120220.0,120210.0,0.61903419]
[1752807171056,0.33024535,120220.0,120210.0,0.61903419]
[1752807171263,0.32727535,120220.0,120210.0,0.6356711]
[1752807171906,0.33559343,120220.0,120210.0,0.6356711]
[1752807172107,0.33559343,120220.0,120210.0,0.6377011]
[1752807172312,0.16091313,120220.0,120210.0,0.64094069]
[1752807172475,0.16923107,120220.0,120210.0,0.68364802]
[1752807172671,0.34391075,120220.0,120210.0,0.28315987]
[1752807172879,0.3439113,120220.0,120210.0,0.2487709]
[1752807173104,0.17754963,120220.0,120210.0,0.64094076]
[1752807173305,0.16923155,120220.0,120210.0,0.64094042]
[1752807173513,0.16091354,120220.0,120210.0,0.64094042]
[1752807173712,0.16091354,120220.0,120210.0,0.63262213]
[1752807173914,0.33559322,120220.0,120210.0,0.62430377]
[1752807174375,0.3439113,120220.0,120210.0,0.62430377]
[1752807174599,0.33559357,120220.0,120210.0,0.61598535]
[1752807174945,0.1692319,120220.0,120210.0,0.63262213]
[1752807175355,0.33559357,120220.0,120210.0,0.61598535]
[1752807175635,0.33559357,120220.0,120210.0,0.62430377]
[1752807176497,0.33559357,120220.0,120210.0,0.63262213]
[1752807176684,0.33559357,120220.0,120210.0,0.62430377]
[1752807176917,0.33559357,120220.0,120210.0,0.63262213]
[1752807177084,0.1692319,120220.0,120210.0,0.63262213]
[1752807177559,0.33559357,120220.0,120210.0,0.62430377]
[1752807178083,0.33559357,120220.0,120210.0,0.62106377]
[1752807178224,0.33758357,120220.0,120210.0,0.62106377]
[1752807178431,0.33758357,120220.0,120210.0,0.61274535]
[1752807178654,0.34055357,120220.0,120210.0,0.59644535]
[1752807178851,0.31547975,120220.0,120210.0,0.02133]
[1752807179055,0.31547975,120220.0,120210.0,0.0034]
[1752807179285,0.17963975,120220.0,120210.0,0.0034]
[1752807179499,0.31543975,120220.0,120210.0,0.0034]
[1752807179825,0.33103975,120220.0,120210.0,0.0034]
[1752807180224,0.33103975,120220.0,120210.0,0.1697755]
[1752807180428,0.31543975,120220.0,120210.0,0.17809427]
[1752807180893,0.30712167,120220.0,120210.0,0.1697755]
[1752807181267,0.30712167,120220.0,120210.0,0.17509413]
[1752807181480,0.30712167,120220.0,120210.0,0.17609427]
[1752807181909,0.30712167,120220.0,120210.0,0.1677755]
[1752807182313,0.30712167,120220.0,120210.0,0.17609427]
[1752807182450,0.16636167,120220.0,120210.0,0.68180683]
[1752807182677,0.32707542,120220.0,120210.0,0.70168388]
[1752807182878,0.33539343,120220.0,120210.0,0.62177118]
[1752807183777,0.33539343,120220.0,120210.0,0.60513413]
[1752807184012,0.3290657,120220.0,120210.0,0.62685002]
[1752807184223,0.15239595,120220.0,120210.0,0.63840851]
[1752807184433,0.31875762,120220.0,120210.0,0.63008974]
[1752807184661,0.02495126,120230.0,120220.0,0.222915]
[1752807184872,0.18296704,120240.0,120230.0,0.19794783]
[1752807185071,0.31872704,120240.0,120230.0,0.60878219]
[1752807185268,0.31872704,120240.0,120230.0,0.61202226]
[1752807185477,0.31872704,120240.0,120230.0,0.62865655]
[1752807185682,0.31872704,120240.0,120230.0,0.62033944]
[1752807185953,0.00831607,120240.0,120230.0,0.6590798]
[1752807186164,0.17098505,120240.0,120230.0,0.6590798]
[1752807186399,0.002,120240.0,120230.0,0.6590798]
[1752807186618,0.13772,120240.0,120230.0,0.6590798]
[1752807187069,0.14603614,120240.0,120230.0,0.6590798]
[1752807187296,0.00831621,120240.0,120230.0,0.65076199]
[1752807187514,0.19963377,120250.0,120240.0,0.1829669]
[1752807187730,0.33734377,120250.0,120240.0,0.6078669]
[1752807187966,0.33734377,120250.0,120240.0,0.61942318]
[1752807188170,0.33734377,120250.0,120240.0,0.61942325]
[1752807188618,0.20162377,120250.0,120240.0,0.61942332]
[1752807188828,0.32067238,120250.0,120240.0,0.21062062]
[1752807189027,0.32067238,120250.0,120240.0,0.60279048]
[1752807189230,0.17867645,120250.0,120240.0,0.60279048]
[1752807189443,0.31435645,120250.0,120240.0,0.60279048]
[1752807189678,0.31435645,120250.0,120240.0,0.6078669]
[1752807190092,0.31435645,120250.0,120240.0,0.60786704]
[1752807190581,0.31635645,120250.0,120240.0,0.60786704]
[1752807190909,0.17533045,120250.0,120240.0,0.00203]
[1752807191144,0.31101045,120250.0,120230.0,0.63259812]
[1752807191360,0.00831663,120240.0,120230.0,0.21832184]
[1752807191565,0.00831607,120240.0,120230.0,0.62915529]
[1752807192326,0.01663228,120240.0,120230.0,0.62915529]
[1752807192531,0.02494856,120240.0,120230.0,0.62915529]
[1752807193283,0.03326491,120240.0,120230.0,0.62915529]
[1752807193493,0.0415814,120240.0,120230.0,0.23698543]
[1752807193696,0.04688189,120240.0,120230.0,0.5751517]
[1752807194196,0.03856533,120240.0,120230.0,0.6086417]
[1752807194474,0.02703884,120240.0,120230.0,0.6086417]
[1752807194697,0.02494884,120240.0,120230.0,0.6086417]
[1752807194929,0.02494884,120240.0,120230.0,0.6118017]
[1752807195148,0.03326533,120240.0,120230.0,0.6118017]
[1752807195359,0.03426533,120240.0,120230.0,0.6118017]
[1752807195827,0.03426533,120240.0,120230.0,0.21963184]
[1752807196101,0.03426533,120240.0,120230.0,0.6118017]
[1752807196318,0.03526533,120240.0,120230.0,0.6118017]
[1752807197467,0.02694884,120240.0,120230.0,0.6118017]
[1752807197645,0.03526533,120240.0,120230.0,0.6118017]
[1752807198237,0.02694884,120240.0,120230.0,0.6118017]
[1752807198442,0.03526533,120240.0,120230.0,0.6118017]
[1752807198634,0.02694884,120240.0,120230.0,0.6118017]
[1752807198844,0.16250884,120240.0,120230.0,0.6118017]
[1752807199058,0.002,120240.0,120230.0,0.68961804]
[1752807199264,0.13756,120240.0,120230.0,0.68961804]
[1752807199979,0.15419249,120240.0,120230.0,0.68961804]
[1752807200894,0.16250905,120240.0,120230.0,0.68961804]
[1752807201100,0.33715973,120240.0,120230.0,0.68961804]
[1752807201382,0.17082574,120240.0,120230.0,0.68961804]
[1752807201595,0.16250905,120240.0,120230.0,0.6118017]
[1752807201811,0.15419249,120240.0,120230.0,0.6118017]
[1752807202375,0.15419242,120240.0,120230.0,0.6118017]
[1752807202571,0.16250877,120240.0,120230.0,0.6118017]
[1752807202787,0.17082533,120240.0,120230.0,0.6118017]
[1752807203190,0.16250877,120240.0,120230.0,0.6118017]
[1752807203409,0.01031614,120240.0,120230.0,0.6118017]
[1752807203641,0.14579614,120240.0,120230.0,0.6118017]
[1752807204088,0.15411242,120240.0,120230.0,0.6118017]
[1752807204293,0.14579607,120240.0,120230.0,0.6118017]
[1752807204510,0.15411235,120240.0,120230.0,0.6118017]
[1752807204712,0.15411228,120240.0,120230.0,0.6118017]
[1752807204946,0.14579607,120240.0,120230.0,0.69756132]
[1752807206110,0.01031614,120240.0,120230.0,0.69756132]
[1752807206308,0.14579614,120240.0,120230.0,0.69756132]
[1752807206664,0.13748,120240.0,120230.0,0.69756132]
[1752807206801,0.14579614,120240.0,120230.0,0.6118017]
[1752807207008,0.14579607,120240.0,120230.0,0.6118017]
[1752807207489,0.15411221,120240.0,120230.0,0.6118017]
[1752807208338,0.16242849,120240.0,120230.0,0.6118017]
[1752807208588,0.14579607,120240.0,120230.0,0.69756132]
[1752807209033,0.15411228,120240.0,120230.0,0.69756132]
[1752807209371,0.14579607,120240.0,120230.0,0.69756132]
[1752807209757,0.13748,120240.0,120230.0,0.69756132]
[1752807210355,0.13748,120240.0,120230.0,0.6118017]
[1752807211159,0.1374,120240.0,120230.0,0.6118017]
[1752807212667,0.002,120240.0,120230.0,0.6118017]
[1752807212850,0.002,120240.0,120230.0,1.22484184]
[1752807213056,0.002,120240.0,120230.0,1.08948184]
[1752807213253,0.002,120240.0,120230.0,0.69731198]
[1752807213881,0.001,120240.0,120230.0,0.7830716]
[1752807214084,0.15204103,120250.0,120230.0,0.7830716]
[1752807214085,0.15204103,120250.0,120240.0,0.22258325]
[1752807214207,0.15204103,120250.0,120240.0,0.61475311]
[1752807214415,0.15204103,120250.0,120240.0,0.61990311]
[1752807214624,0.15204103,120250.0,120240.0,0.70258109]
[1752807214831,0.16035683,120250.0,120240.0,0.70258109]
[1752807215038,0.15204103,120250.0,120240.0,0.70258109]
[1752807215495,0.15304103,120250.0,120240.0,0.70258109]
[1752807215695,0.1613169,120250.0,120240.0,0.61990311]
[1752807215894,0.1613169,120250.0,120240.0,0.22773325]
[1752807216141,0.1613169,120250.0,120240.0,0.61990311]
[1752807216574,0.17063283,120250.0,120240.0,0.61990311]
[1752807216988,0.1623169,120250.0,120240.0,0.61990311]
[1752807217759,0.01868103,120250.0,120240.0,0.61990311]
[1752807217964,0.16227683,120250.0,120240.0,0.61990311]
[1752807218321,0.1705927,120250.0,120240.0,0.61990311]
[1752807218517,0.17890863,120250.0,120240.0,0.61990311]
[1752807218743,0.16227683,120250.0,120240.0,0.70566273]
[1752807218960,0.17059263,120250.0,120240.0,0.22773325]
[1752807219154,0.17059263,120250.0,120240.0,0.61990311]
[1752807219392,0.17890856,120250.0,120240.0,0.61990311]
[1752807220040,0.34522927,120250.0,120240.0,0.61990311]
[1752807221346,0.17890911,120250.0,120240.0,0.61990311]
[1752807221549,0.17059311,120250.0,120240.0,0.61990311]
[1752807221885,0.33691327,120250.0,120240.0,0.61990311]
[1752807222498,0.34522927,120250.0,120240.0,0.61990311]
[1752807222702,0.34731927,120250.0,120240.0,0.61674311]
[1752807223119,0.34522927,120250.0,120240.0,0.61674311]
[1752807223327,0.17890911,120250.0,120240.0,0.61992311]
[1752807223530,0.15396131,120250.0,120240.0,0.61992311]
[1752807223711,0.15396131,120250.0,120240.0,0.22775325]
[1752807223959,0.16227718,120250.0,120240.0,0.61992311]
[1752807224584,0.54562318,120250.0,120240.0,0.61992311]
[1752807224893,0.72025934,120250.0,120240.0,0.6116069]
[1752807225106,0.72025934,120250.0,120240.0,1.11022009]
[1752807225608,0.54562318,120250.0,120240.0,1.1185363]
[1752807225954,0.72025927,120250.0,120240.0,1.1177363]
[1752807226174,0.72857527,120250.0,120240.0,1.10942009]
[1752807226572,0.72025961,120250.0,120240.0,1.10942009]
[1752807226958,0.72223961,120250.0,120240.0,0.66500674]
[1752807227172,0.57342801,120250.0,120240.0,0.61588397]
[1752807227411,0.56511208,120250.0,120240.0,0.61588397]
[1752807227618,0.70027208,120250.0,120240.0,0.61588397]
[1752807227855,0.70027208,120250.0,120240.0,0.62420053]
[1752807230064,0.70027208,120250.0,120240.0,0.61588397]
[1752807230306,0.69195608,120250.0,120240.0,0.61588397]
[1752807231438,0.69195608,120250.0,120240.0,0.44123335]
[1752807232058,0.72267608,120250.0,120240.0,0.44123335]
[1752807232751,0.70717608,120250.0,120240.0,0.44123335]
[1752807233484,0.70717608,120250.0,120240.0,0.60756734]
[1752807233826,0.70717608,120250.0,120240.0,0.61588397]
[1752807234069,0.70717608,120250.0,120240.0,1.07575995]
[1752807234070,0.53387172,120250.0,120240.0,1.07575995]
[1752807234389,0.41232262,120250.0,120240.0,1.07575995]
[1752807234590,0.38539592,120250.0,120240.0,1.18647639]
[1752807234796,0.38539592,120250.0,120240.0,1.18965639]
[1752807235067,0.52043592,120250.0,120240.0,1.18965639]
[1752807235279,0.52043592,120250.0,120240.0,1.11033995]
[1752807235918,0.38539592,120250.0,120240.0,1.11033995]
[1752807236234,0.52043592,120250.0,120240.0,1.11033995]
[1752807237099,0.38539592,120250.0,120240.0,1.01213813]
[1752807237255,0.52043592,120250.0,120240.0,1.01213813]
[1752807240440,0.52043592,120250.0,120240.0,1.45804173]
[1752807240441,0.38539592,120250.0,120240.0,1.45804173]
[1752807240849,0.38539592,120250.0,120240.0,1.50804173]
[1752807241060,0.38539592,120250.0,120240.0,1.64300173]
[1752807241323,0.13496,120270.0,120260.0,0.21453661]
[1752807241508,0.06638729,120290.0,120280.0,0.22281964]
[1752807241719,0.13501007,120290.0,120280.0,1.05284733]
[1752807241921,0.13501007,120290.0,120280.0,0.66071489]
[1752807242173,0.00836269,120290.0,120280.0,0.62014208]
[1752807242380,0.14332269,120290.0,120280.0,0.62014208]
[1752807243035,0.14332282,120290.0,120280.0,0.62014208]
[1752807243250,0.14532282,120290.0,120280.0,0.62014208]
[1752807243458,0.14532282,120290.0,120280.0,0.7059017]
[1752807243632,0.13901007,120290.0,120280.0,0.7059017]
[1752807244232,0.14732282,120290.0,120280.0,0.7059017]
[1752807244461,0.13897007,120290.0,120280.0,0.7059017]
[1752807244678,0.14728276,120290.0,120280.0,0.7059017]
[1752807244887,0.00405007,120290.0,120280.0,0.7059017]
[1752807245113,0.02067551,120290.0,120280.0,0.62014208]
[1752807245329,0.15555551,120290.0,120280.0,0.62014208]
[1752807245528,0.15555544,120290.0,120280.0,0.62014208]
[1752807246143,0.16386826,120290.0,120280.0,0.62014208]
[1752807246398,0.15555544,120290.0,120280.0,0.62014208]
[1752807246579,0.15555544,120290.0,120280.0,0.69215762]
[1752807246811,0.00405007,120290.0,120280.0,1.08429006]
[1752807247009,0.13893007,120290.0,120280.0,1.08429006]
[1752807248080,0.13893007,120290.0,120280.0,0.30002518]
[1752807248292,0.13893007,120290.0,120280.0,1.01227452]
[1752807248980,0.13893007,120290.0,120280.0,1.0977848]
[1752807249840,0.13493007,120290.0,120280.0,1.0977848]
[1752807250332,0.13593007,120290.0,120280.0,1.0977848]